Cogmind - Beta 15 @@@ ROGUE MODE // 2025.07.11 @ 15:53:22 Player: MirenBlacksword Result: Destroyed by G-34 Mercenary with Small Laser Performance ------------- Evolutions (1) 500 Regions Visited (3) 600 Robots Destroyed (12) 60 Value Destroyed (103) 103 Prototype IDs (0) 0 Alien Tech Used (0) 0 Bonus (0) 0 TOTAL SCORE: 1263 Bonus ------- None Cogmind --------- Core Integrity 0/400 Matter 265/300 Energy 100/100 System Corruption 0% Temperature Cool (6) Movement Core (50) Location -9/Materials Parts ------- > --- POWER (1) -------- (None) > --- PROPULSION (4) --- (None) > --- UTILITY (2) ------ (None) > --- WEAPON (2) ------- Ripper (fused) > --- INVENTORY (5) ---- Ion Engine Light Ion Engine Tractor Beam Improved Light Cannon Peak State ------------ > --- POWER ------------ Ion Engine > --- PROPULSION ------- Wheel Wheel > --- UTILITY ---------- Large Storage Unit Seismic Detector > --- WEAPON ----------- Small Laser Assault Rifle > --- INVENTORY -------- Ion Engine Light Treads Light Treads Aluminum Leg Medium Battery Medium Matter Pod Sensor Array Tractor Beam Small Laser Mining Laser [Rating: 8] Favorites ----------- Power Ion Engine Engine Ion Engine Propulsion Wheel Leg Aluminum Leg Wheel Wheel Flight Unit Flight Unit Utility Seismic Detector Device Seismic Detector Storage Large Storage Unit Weapon Small Laser Energy Gun Small Laser Ballistic Gun Assault Rifle Ballistic Cannon Improved Light Cannon Slashing Weapon Ripper Build | -11 -10 -10 -9 ------- Run | Yrd Mat Min Mat Slots Evolved 2 | . . . 2 Power . | . . . . Propulsion 2 | . . . 2 Utility . | . . . . Weapon . | . . . . Parts Attached 12 | 4 1 6 1 Power . | . . . . Engine . | . . . . Core . | . . . . Reactor . | . . . . Propulsion 8 | 3 . 5 . Treads . | . . . . Leg 1 | . . 1 . Wheel 3 | 3 . . . Hover . | . . . . Flight 4 | . . 4 . Utility 2 | 1 1 . . Device 1 | 1 . . . Storage 1 | . 1 . . Processor . | . . . . Hackware . | . . . . Protection . | . . . . Artifact . | . . . . Weapon 2 | . . 1 1 Energy Gun . | . . . . Energy Cannon . | . . . . Ballistic Gun . | . . . . Ballistic Cannon 1 | . . . 1 Launcher . | . . . . Special Weapon . | . . . . Impact Weapon . | . . . . Slashing Weapon 1 | . . 1 . Piercing Weapon . | . . . . Special Melee Weapon . | . . . . Unidentified Prototypes . | . . . . Parts Lost 11 | . . 10 1 Power 1 | . . 1 . Propulsion 7 | . . 6 1 Utility 1 | . . 1 . Weapon 2 | . . 2 . Highest Loss Streak 6 | . . 6 5 To Critical Strikes . | . . . . Average Backups 7 | 7 11 6 3 Power 1 | 1 1 1 2 Propulsion 2 | 4 4 2 . Utility 2 | . 3 2 1 Weapon 1 | 1 2 . . Tool/Special . | . . . . Unused Backups 24 | 6 . 15 3 Power 4 | 1 . 1 2 Propulsion 5 | 2 . 3 . Utility 8 | 1 . 6 1 Weapon 7 | 2 . 5 . Tool/Special . | . . . . Average Slot Usage (%) 62 | . 100 48 16 Engine 6 | . 14 2 . Leg 1 | . . 2 . Wheel 12 | . 28 4 . Flight 6 | . . 11 2 Device 11 | . 14 13 . Storage 6 | . 14 2 . Energy Gun 6 | . 14 2 . Ballistic Gun 6 | . 14 2 . Slashing Weapon 4 | . . 6 11 Peak Build Rating 8 | 7 8 8 6 Average Rating 5 | 6 7 4 4 On Entrance 6 | 6 7 8 4 Naked Turns . | . . . . Heaviest Build 29 | 14 29 29 7 Greatest Support 20 | 20 20 20 4 Greatest Overweight (x) 2 | 1 1 2 2 Average Overweight (x) . | . . . . Largest Inventory Capacity 15 | 8 15 15 5 Average Capacity 8 | 8 14 6 5 Most Carried 15 | 8 15 15 4 Average Carried 7 | 7 11 6 3 Final Capacity 15 | 8 15 5 5 Final Carried 15 | 8 15 4 4 Class Distribution -------------------- 100% | Mutant Dominant Class ---------------- Mutant | -10/Materials Mutant | -10/Mines Mutant | -9/Materials Resources | -11 -10 -10 -9 ----------- Run | Yrd Mat Min Mat Matter Collected 746 | 258 35 453 . Remotely . | . . . . Salvage Created 314 | 140 35 126 13 Parts 20 | 9 5 6 . Haulers Intercepted . | . . . . Recyclers Shooed . | . . . . Parts Field Recycled . | . . . . Retrieved Matter . | . . . . Parts Self-Destructed . | . . . . Prevented . | . . . . Kills | -11 -10 -10 -9 ------- Run | Yrd Mat Min Mat Combat Hostiles Destroyed 7 | . 3 3 1 Melee 1 | . . . 1 Guns 6 | . 3 3 . Classes Destroyed 3 | 2 1 . . Tunneler 3 | 3 . . . Recycler 2 | 1 . 1 . Swarmer 7 | . 3 3 1 Best Kill Streak 4 | 2 2 4 1 Combat Bots Only 3 | . 2 3 1 Max Kills in Single Turn 1 | 1 1 1 1 Gunslinging . | . . . . Exploded . | . . . . Melee 1 | . . . 1 Uniques/NPCs Destroyed . | . . . . Combat | -11 -10 -10 -9 -------- Run | Yrd Mat Min Mat Hostile Shots Fired 163 | . 13 70 80 Missed 49 | . 2 26 21 Hits 114 | . 11 44 59 Melee 1 | . . 1 . Projectile 113 | . 11 43 59 AOE 5 | . . 5 . Critical Strikes 2 | . . 1 1 Damage Taken 1304 | . 81 658 565 Core 610 | . 29 177 404 Absorbed by Shields . | . . . . Core Remaining (%) 58 | 100 . 17 . Volleys Fired 25 | 6 9 5 5 Largest 2 | 2 2 2 1 Hottest 60 | 60 60 60 33 Shots Fired 42 | 9 18 10 5 Gun 37 | 9 18 10 . Cannon 5 | . . . 5 Launcher . | . . . . Special . | . . . . Kinetic 25 | 6 9 5 5 Thermal 17 | 3 9 5 . Explosive . | . . . . Electromagnetic . | . . . . Robot Hit Streak 9 | 8 9 3 3 Robot Miss Streak 7 | . 7 2 3 Penetration Max . | . . . . Secondary Targets 2 | . . 2 . Max Gunslinging Chain 1 | . . 1 . Shots Hit Robots 28 | 8 6 6 8 Core Hits 15 | 5 4 4 2 Critical Kills . | . . . . Critical Parts Destroyed . | . . . . Critical Strikes 2 | . . . 2 Blast 1 | . . . 1 Sever 1 | . . . 1 Melee Attacks 11 | . . 1 10 Impact . | . . . . Slashing 11 | . . 1 10 Piercing . | . . . . Sneak Attacks . | . . . . Combat Hostiles . | . . . . Follow-up Attacks . | . . . . Damage Inflicted 551 | 98 69 119 265 Guns 242 | 98 69 75 . Cannons 42 | . . . 42 Explosions . | . . . . Melee 267 | . . 44 223 Ramming . | . . . . Kinetic 175 | 78 14 41 42 Thermal 109 | 20 55 34 . Explosive . | . . . . Electromagnetic . | . . . . Impact . | . . . . Slashing 267 | . . 44 223 Piercing . | . . . . Highest Corruption 2 | . 2 2 . Average Corruption 2 | . 2 2 . Corruption Purged . | . . . . Corruption Blocked . | . . . . Effects 7 | . 2 5 . Message Errors 1 | . . 1 . Matter Fused 2 | . . 2 . Heat Flow Errors 1 | . 1 . . Parts Fused 1 | . . 1 . Data Loss (minor) 1 | . 1 . . Alerts 1 | . . 1 . Overload Shots . | . . . . Overflow Damage 33 | . . . 33 Projectiles . | . . . . Explosions . | . . . . Melee 33 | . . . 33 Knockbacks 3 | . . . 3 Impact . | . . . . Kinetic 2 | . . . 2 Secondary 1 | . . . 1 Self-Inflicted Damage . | . . . . Shots . | . . . . Rammed . | . . . . Targets Rammed . | . . . . Kicked . | . . . . Crushed . | . . . . Highest Temperature 266 | . 266 . 1 Average Temperature 96 | . 106 . 1 Received Heat Transfer 158 | . . 20 138 Siege Activations . | . . . . Martial Activations . | . . . . Shielding Activations . | . . . . Robots Disrupted . | . . . . Combat Hostiles . | . . . . Robots Corrupted . | . . . . Combat Hostiles . | . . . . Parts Fried . | . . . . Impact Corruptions . | . . . . Robots Melted . | . . . . Combat Hostiles . | . . . . Parts Melted . | . . . . Heat Transferred 250 | 50 125 75 . Parts Sabotaged . | . . . . Parts Stolen . | . . . . Parts Stripped . | . . . . Power Chain Reactions . | . . . . Alert | -11 -10 -10 -9 ------- Run | Yrd Mat Min Mat Maximum Alert Level . | . . . . Low Security (%) 100 | 100 100 100 100 Level 1 . | . . . . Level 2 . | . . . . Level 3 . | . . . . Level 4 . | . . . . Level 5 . | . . . . High Security . | . . . . Max Security . | . . . . Peak Influence 101 | 10 101 78 79 Initial 23 | . . 23 . Average 23 | 3 42 8 48 Influence Increases 346 | 20 121 90 115 Destroy 0b10 Robot/C 140 | . 60 60 20 Destroy 0b10 Robot/NC 25 | 20 . 5 . Destroy Leader 30 | . 10 10 10 Successful Hack 14 | . 5 . 9 Destroy Structure 2 | . 1 . 1 Partial Spotted 15 | . . . 15 Lose Combat Pursuer 120 | . 45 15 60 Influence Decreases 271 | 20 60 151 40 Entered New Map 38 | . . 38 . Time Decay 163 | 20 60 53 30 Lost Part 70 | . . 60 10 Squads Dispatched 2 | . 2 . . Investigation . | . . . . Extermination . | . . . . Reinforcement 2 | . 2 . . Assault . | . . . . Garrison . | . . . . Intercept . | . . . . Searches Triggered . | . . . . Construction Impeded . | . . . . Haulers Reinforced . | . . . . Active Scanning Responses . | . . . . Cargo Convoy Interrupts . | . . . . Stealth | -11 -10 -10 -9 --------- Run | Yrd Mat Min Mat Distress Signals 1 | . 1 . . Communications Jammed . | . . . . Distress Signals . | . . . . Times Spotted 42 | . 8 22 12 Peak Tracking Total 10 | . 4 10 7 Tactical Retreats 5 | . 1 2 2 Traps | -11 -10 -10 -9 ------- Run | Yrd Mat Min Mat Traps Triggered 1 | . 1 . . Indirectly . | . . . . Trap Hack Attempts . | . . . . Triggered . | . . . . Disarmed . | . . . . Reprogrammed . | . . . . Reused . | . . . . Traps Extracted . | . . . . Installed . | . . . . Triggered . | . . . . Machines | -11 -10 -10 -9 ---------- Run | Yrd Mat Min Mat Machines Disabled . | . . . . Max in Single Turn . | . . . . Machines Repaired . | . . . . Machines Dismantled . | . . . . Machines Sabotaged . | . . . . Overloaded Fab Kills . | . . . . Hacking | -11 -10 -10 -9 --------- Run | Yrd Mat Min Mat Machines Accessed 4 | . 1 . 3 Terminals 3 | . 1 . 2 Fabricators . | . . . . Repair Stations 1 | . . . 1 Recycling Units . | . . . . Scanalyzers . | . . . . Garrison Access . | . . . . Total Hacks 12 | . 4 . 8 Successful 4 | . 1 . 3 Failed 8 | . 3 . 5 Catastrophic 1 | . 1 . . Database Lockouts . | . . . . Manual 9 | . 4 . 5 Terminals 10 | . 4 . 6 Fabricators . | . . . . Repair Stations 2 | . . . 2 Recycling Units . | . . . . Scanalyzers . | . . . . Garrison Access . | . . . . Terminal Hacks 1 | . . . 1 Emergency Access Points 1 | . . . 1 Fabricator Hacks . | . . . . Repair Station Hacks . | . . . . Recycling Unit Hacks . | . . . . Scanalyzer . | . . . . Garrison Access Hacks . | . . . . Unauthorized Hacks 3 | . 1 . 2 Terminals 3 | . 1 . 2 Botnet 3 | . 1 . 2 Fabricators . | . . . . Repair Stations . | . . . . Recycling Units . | . . . . Scanalyzers . | . . . . Garrison Access . | . . . . Data Cores Recovered . | . . . . Used . | . . . . Hacking Detections 4 | . 1 . 3 Full Trace Events 2 | . . . 2 Feedback Events . | . . . . Feedback Blocked . | . . . . Robot Schematics Acquired . | . . . . Robots Built . | . . . . Authchips . | . . . . Time . | . . . . Total Robot Build Rating . | . . . . Part Schematics Acquired . | . . . . Parts Built . | . . . . Authchips . | . . . . Time . | . . . . Total Part Build Rating . | . . . . Parts Repaired . | . . . . Time . | . . . . Parts Recycled . | . . . . Recycled Matter . | . . . . Retrieved Matter . | . . . . Retrieved Components . | . . . . Parts Scanalyzed . | . . . . Part Schematics Acquired . | . . . . Parts Damaged . | . . . . Bothacking | -11 -10 -10 -9 ------------ Run | Yrd Mat Min Mat Used RIF Installer . | . . . . Robots Hacked . | . . . . Non-combat . | . . . . Combat . | . . . . Robot Hacks Applied . | . . . . Relay Couplers Released . | . . . . Fabnet Peak Effective % . | . . . . Robots Rewired . | . . . . Allies Hacked . | . . . . Hacks Repelled . | . . . . Allies | -11 -10 -10 -9 -------- Run | Yrd Mat Min Mat Total Allies . | . . . . Largest Group . | . . . . Highest-Rated Group . | . . . . Highest-Rated Ally . | . . . . Total Orders . | . . . . Ally Attacks . | . . . . Total Damage . | . . . . Kills . | . . . . Allies Corrupted . | . . . . Allies Melted . | . . . . Intel | -11 -10 -10 -9 ------- Run | Yrd Mat Min Mat Active Infowar (turns) 549 | 3 225 321 . Seismic 549 | 3 225 321 . Robot Analysis Total . | . . . . Derelict Logs Recovered 1 | . . 1 . Drone Launches . | . . . . Drone Recoveries . | . . . . Exploration | -11 -10 -10 -9 ------------- Run | Yrd Mat Min Mat Turns Passed 717 | 63 225 350 79 Spaces Moved 632 | 31 194 325 82 Core 39 | . . 8 31 Treads . | . . . . Legs 29 | 9 . 20 . Wheels 257 | 22 194 41 . Hover . | . . . . Flight 307 | . . 256 51 Fastest Speed 37 | 80 80 37 40 Average Speed 66 | 92 93 53 49 Slowest Speed 150 | 120 95 120 150 Overloaded Moves . | . . . . Propulsion Burnouts . | . . . . Robots Hopped . | . . . . Potential Cave-ins . | . . . . Cave-ins Triggered . | . . . . Exploration Rate (%) 30 | 3 35 73 9 Regions Visited 3 Branch Regions 1 Pre-discovered Areas . | . . . . Known Exits Taken . | . . . . Unknown Exits Taken 3 | 1 1 1 . Scrap Searched 1 | . . 1 . Spaces Dug . | . . . . Terrain Destroyed 1 | . . . 1 Melee . | . . . . Projectile 1 | . . . 1 AOE . | . . . . Terrain Rammed . | . . . . Walls Destroyed . | . . . . Machines Disabled . | . . . . Actions | -11 -10 -10 -9 --------- Run | Yrd Mat Min Mat Total 867 | 54 221 491 101 Wait 165 | 12 6 147 . Move 629 | 30 193 324 82 Hop . | . . . . Pick Up 15 | 2 9 3 1 Fast Attach 3 | 1 . 2 . Attach 5 | . . 3 2 Detach 1 | . . . 1 Swap 5 | 3 1 1 . Drop 8 | . 3 5 . Fire 25 | 6 9 5 5 Melee 11 | . . 1 10 Ram . | . . . . Kick . | . . . . Crush . | . . . . Escape Stasis . | . . . . Rewire . | . . . . Trap . | . . . . Miscellaneous . | . . . . Route ------- -11/Scrapyard -10/Materials (discovered 2 exits: *Mat / [*Min]) -10/Mines -9/Materials History --------- Turn | Location | Event 11 | -11/Scrapyard | Discovered new exit (range 3) 64 | -11/Scrapyard | Entered Materials 99 | -10/Materials | Discovered new exit (range 6) 230 | -10/Materials | Discovered new exit (range 16) 289 | -10/Materials | Entered Mines 318 | -10/Mines | Build established: Mutant 341 | -10/Mines | Assembled infested the area 385 | -10/Mines | Lost 6 parts (1p3n2w) 457 | -10/Mines | Learned Materials emergency access door positions 476 | -10/Mines | A weapon hastily lodged in a ceiling crevice suddenly fell to the ground 618 | -10/Mines | Core integrity fell below 50% 636 | -10/Mines | Core integrity fell below 20% 636 | -10/Mines | Discovered new exit (range 9) 639 | -10/Mines | Entered Materials 639 | -9/Materials | Evolved 2 slots: Propulsion x2 700 | -9/Materials | Lost 5 parts (4n1u) 707 | -9/Materials | Core integrity fell below 50% 714 | -9/Materials | Core integrity fell below 20% 718 | -9/Materials | Destroyed by G-34 Mercenary with Small Laser Last Messages --------------- Awaiting botnet instructions. 00658_ Connecting with Repair Station... 00660_ Acquired Imp. Light Cannon. 00667_ Connecting with Terminal... >>Trojan(Botnet) Trojan loaded successfully. Testing... Terminal linked with 1 system. Awaiting botnet instructions. 00669_ C-30 ARC bursts open, deploying its payload. 00669_ S-10 Pest unfolds itself. 00669_ Flight Unit destroyed. 00669_ S-10 Pest destroyed. 00675_ S-10 Pest suffers critical hit (Blast). 00675_ Destroyed Flight Unit. 00675_ S-10 Pest knocked back. 00711_ Critical hit (Burn: +37). 00714_ Destroyed Lgt. Nuclear Core. 00716_ G-47 Trooper Aluminum Leg severed. Map ----- +----------------------------------------------------+ | ?????????????????????????????????????????????????? | | ?????????????????????????????????????????????????? | | ?????????????????????????????????????????????????? | | ?????????????????????????????????????????????????? | | ?????????????????????????????????????????????????? | | ????????????????????????????????? ???????????????? | | ??????????????????????????????? ??????????????? | | ??????????????????????????????? ??????????????? | | ???????????????????????????????# ?????????????? | | ???????????????????????????????# ?????????????? | | ??????????????????????????????## ????????????? | | ??????????????????????????????? #???????????? | | ????????????????????????????????# ??????????? | | ????????????????????????????????# ??????????? | | ????###?????????????????????????# ###???????? | | ???? ??????????????????????????? #???????? | | ????? ???????????????????????????? +???????? | | ????? ?????????????###########?????? #???????? | | ?????# ?????????????# #########+#???????? | | ?????# ?????????????# ## #???????? | | ?????# ????????????# """ ## [ " #???????? | | ?????# % ????????????# """ """ ## T #???????? | | ?????# #########???# "R """ ## """ " #???????? | | ?????#"% # ##### """ ## """ #???????? | | ?????# "%# T g s/ "" ## """ #???????? | | ?????# / #####s @= ## #???????? | | ?????# #################g###########+######????? | | ?????# ?????# #????? | | ?????# ??????# #????? | | ????# ??????# #????? | | ????# ???????# ######+##################????? | | ????# ???????# ????? ????????????????????? | | ????# ????????# ????? ! #??????????????????? | | ????# ????????#?????# #??????????????????? | | ????#???????????????# """ """ #??????????????????? | | ????????????????????# """ """ #??????????????????? | | ????????????????????# """ """ #??????????????????? | | ????????????????????# #??????????????????? | | ????????????????????#?? #??????????????????? | | ???????????????????????#####??#??????????????????? | | ?????????????????????????????????????????????????? | | ?????????????????????????????????????????????????? | | ?????????????????????????????????????????????????? | | ?????????????????????????????????????????????????? | | ?????????????????????????????????????????????????? | | ?????????????????????????????????????????????????? | | ?????????????????????????????????????????????????? | | ?????????????????????????????????????????????????? | | ?????????????????????????????????????????????????? | | ?????????????????????????????????????????????????? | +----------------------------------------------------+ Best States ------------- Heat Dissipation 28 Energy Generation 10 Energy Capacity 250 Matter Stores 300 Matter Capacity 300 Sight Range 16 Terrain Scan Density 10 Evasion (%) 62 Item Schematics ----------------- None Robot Schematics ------------------ None Fabricated ------------ Nothing Repaired ---------- Nothing Alien Tech Used ----------------- None Achievements -------------- None Challenges ------------ None Game ------ Seed LegCoreCalibrator Manual? 0 Play Time 00:17:02 Cumulative 21.0 hours Start 2025.07.11 @ 15:38:42 End 2025.07.11 @ 15:53:22 Sessions 1 Manual Loads 0 Difficulty Rogue Special Mode None Game No. 16 Rogue 11 Adventurer 5 Explorer 0 Win Type - Total 1 Types 1/0/0/0/0/0/0/0/0/0 Lore% 23 Gallery% 17 Achievement% 25 Wizard Run 0 Options --------- Layout 1 ASCII 0 Keyboard 1 Movement Arrows Keybinds 0 Fullscreen 1 Font 24/Smallcaps Map View 50x35 Zoom Use 0% Tactical HUD 1 Map Filters NONE Filters NONE Steam 1 RUN: 854c9818-a7e4-45c8-a380-c531f22ed53e